bitfinex-derivatives/quotes_ETHF0:USTF0_20230702
["timestamp","ask_amount","ask_price","bid_price","bid_amount"]
[1688339086394,0.31697096,1940.4,1940.3,3.231]
[1688339090486,0.31697096,1940.4,1940.3,3.51771635]
[1688339091077,0.31697096,1940.4,1940.3,3.249]
[1688339092799,0.31697096,1940.4,1940.3,3.53571635]
[1688339099190,0.31697096,1940.4,1940.3,3.84494635]
[1688339100693,4.6582092,1940.7,1940.4,0.56748412]
[1688339100694,1.0307,1940.7,1940.4,0.56748412]
[1688339100892,0.30918,1940.7,1940.6,3.232]
[1688339101101,0.30918,1940.7,1940.6,3.54118]
[1688339101102,0.30916,1940.7,1940.6,3.54118]
[1688339101420,0.92757,1940.8,1940.6,4.10866412]
[1688339101603,0.30916,1940.7,1940.6,1.16338047]
[1688339101884,0.30916,1940.7,1940.6,4.41238047]
[1688339103282,6.76596,1940.7,1940.2,5.16324265]
[1688339103515,3.249,1940.3,1940.2,0.40354265]
[1688339103711,3.249,1940.3,1940.2,0.48243147]
[1688339103712,6.76603,1940.3,1940.2,0.48243147]
[1688339103992,7.33346942,1940.3,1940.2,0.07888882]
[1688339104191,7.33146942,1940.3,1939.8,0.00773216]
[1688339104396,3.2078,1939.9,1939.8,0.00773216]
[1688339104700,4.08452942,1939.9,1939.8,0.00773216]
[1688339107487,7.33352942,1939.9,1939.7,0.40646814]
[1688339107793,7.33352942,1939.9,1939.5,3.249]
[1688339107985,3.51714,1939.6,1939.5,3.249]
[1688339108179,4.08457942,1939.6,1939.0,13.11]
[1688339108393,0.87677942,1939.6,1939.3,3.249]
[1688339108586,3.51717,1939.4,1939.3,3.25673415]
[1688339109184,3.51717,1939.4,1939.3,3.5434505]
[1688339109590,4.08460942,1939.4,1939.3,3.25673415]
[1688339109792,4.08460942,1939.4,1939.3,5.06373415]
[1688339111092,4.08460942,1939.4,1939.3,5.3504505]
[1688339111689,4.08460942,1939.4,1939.3,5.46475187]
[1688339114491,4.08460942,1939.4,1939.3,5.75146822]
[1688339114996,4.08460942,1939.4,1939.3,5.46475187]
[1688339115197,4.08460942,1939.4,1939.3,5.75146822]
[1688339115699,4.08460942,1939.4,1939.3,5.46475187]
[1688339115998,4.08460942,1939.4,1939.3,5.75146822]
[1688339117096,3.51717,1939.4,1939.3,5.75146822]
[1688339117310,0.30937,1939.4,1939.3,5.75146822]
[1688339119102,8.56517,1939.4,1939.3,0.40875187]
[1688339119400,3.51717,1939.4,1939.3,0.40875187]
[1688339120297,8.56517,1939.4,1939.3,0.40875187]
[1688339121402,3.51717,1939.4,1939.3,0.40875187]
[1688339121601,3.51717,1939.4,1939.3,5.46375187]
[1688339122102,3.51717,1939.4,1939.3,5.75046822]
[1688339122714,3.51717,1939.4,1939.3,5.46375187]
[1688339124317,3.51717,1939.4,1939.3,5.75046822]
[1688339125222,3.51717,1939.4,1939.3,5.46375187]
[1688339125520,3.51717,1939.4,1939.3,5.75046822]
[1688339126610,3.51717,1939.4,1939.3,5.46375187]
[1688339127022,3.51717,1939.4,1939.3,5.75046822]
[1688339128520,3.93871943,1939.4,1939.3,5.75046822]
[1688339128831,3.93871943,1939.4,1939.3,5.46375187]
[1688339129022,3.93871943,1939.4,1939.3,5.75046822]
[1688339129423,3.93871943,1939.4,1939.3,5.46375187]
[1688339129929,3.93871943,1939.4,1939.3,0.40875187]
[1688339134728,13.773,1939.1,1939.0,0.1]
[1688339134929,13.773,1939.1,1937.8,12.968]
[1688339134930,0.77377,1938.7,1937.8,12.968]
[1688339135229,0.77377,1938.7,1937.5,12.8515]
[1688339135230,8.57338,1938.1,1937.5,5.007]
[1688339135432,0.30964,1937.7,1937.5,5.007]
[1688339135624,0.30964,1937.7,1937.6,0.85420047]
[1688339135821,0.30964,1937.7,1937.4,0.00774154]
[1688339136128,3.2078,1937.6,1937.5,0.28671635]
[1688339136333,0.30966,1937.6,1937.4,5.04974154]
[1688339136825,1.34158942,1937.7,1937.5,11.37686047]
[1688339136826,0.77415,1937.7,1937.5,11.37686047]
[1688339137031,0.78185154,1937.8,1937.6,8.67546]
[1688339137032,0.00774154,1937.8,1937.6,8.67546]
[1688339137225,0.30964,1937.8,1937.7,10.097]
[1688339137420,0.92887,1937.9,1937.8,0.30963]
[1688339137628,0.92887,1937.9,1937.8,8.54243]
[1688339137829,0.92887,1937.9,1937.8,9.39663047]
[1688339138223,4.13667,1937.9,1937.4,0.41947261]
[1688339138427,5.006,1937.7,1937.4,0.41947261]
[1688339138730,3.2078,1937.5,1937.4,0.41947261]
[1688339139025,3.51747,1937.5,1937.4,0.41947261]
[1688339140034,3.51747,1937.5,1937.2,1.54786391]
[1688339140222,3.51747,1937.5,1936.3,2.0005032]
[1688339140223,5.0,1937.0,1936.2,2.0005032]
[1688339140426,5.0,1937.0,1936.1,7.6794277]
[1688339140427,0.30985,1936.4,1936.1,5.042]
[1688339140627,0.30985,1936.4,1936.3,5.007]
[1688339140828,0.30985,1936.4,1936.3,0.30986]
[1688339141026,0.30985,1936.4,1936.3,0.28671635]
[1688339141234,0.30985,1936.4,1936.2,0.00774653]
[1688339141235,8.52865,1936.4,1936.2,0.00774653]
[1688339141530,10.11,1936.3,1936.0,0.50560962]
[1688339141735,5.048,1936.1,1936.0,0.50560962]
[1688339142029,0.3099,1936.1,1936.0,1.07309374]
[1688339142235,0.3099,1936.1,1936.0,7.87361262]
[1688339142534,0.3099,1936.1,1936.0,2.81761262]
[1688339142731,5.3159,1936.1,1936.0,2.81761262]
[1688339142938,5.3159,1936.1,1935.7,5.36595]
[1688339142939,5.0,1935.8,1935.3,12.968]
[1688339143128,0.31002,1935.3,1935.1,3.2078]
[1688339143323,0.31002,1935.3,1935.2,0.85420047]
[1688339144029,0.31002,1935.3,1935.2,0.28671635]
[1688339144233,5.36602,1935.3,1935.0,1.70217336]
[1688339144535,0.31006,1935.1,1935.0,9.29135412]
[1688339144734,0.77515,1935.2,1935.1,0.62012]
[1688339144938,0.77515,1935.2,1935.1,5.96283635]
[1688339145136,0.31004,1935.2,1935.1,6.27289635]
[1688339145443,0.31004,1935.2,1935.1,0.28671635]
[1688339146530,0.31004,1935.2,1935.1,5.29371635]
[1688339146736,0.31004,1935.2,1935.1,5.60377635]
[1688339147048,0.7751,1935.5,1935.2,0.56748412]
[1688339147332,0.30999,1935.6,1935.5,0.30999]
[1688339147536,0.30999,1935.6,1935.5,5.90247412]
[1688339147838,0.30999,1935.6,1935.5,6.18919047]
[1688339148140,0.30999,1935.6,1935.5,0.87747412]
[1688339148434,0.30999,1935.6,1935.3,0.31002]
[1688339148636,0.30999,1935.6,1935.3,0.87750412]
[1688339148834,0.30999,1935.6,1935.4,0.28671635]
[1688339149541,0.30999,1935.6,1935.4,0.59672635]
[1688339149835,0.30999,1935.6,1935.5,3.77528412]
[1688339150037,0.30998,1935.6,1935.5,9.14127412]
[1688339150638,0.93764974,1935.7,1935.5,9.14127412]
[1688339150841,0.93764974,1935.7,1935.6,5.31171635]
[1688339151140,0.9297,1936.1,1935.6,17.33324106]
[1688339151445,1.03288,1936.4,1936.0,8.2628]
[1688339151446,0.92961,1936.3,1936.0,8.2628]
[1688339151631,0.30988,1936.4,1936.2,13.2288]
[1688339151941,0.30988,1936.4,1936.3,5.007]
[1688339152142,0.30988,1936.4,1936.3,5.60357635]
[1688339152335,0.30988,1936.4,1936.3,6.17106047]
[1688339152533,0.92946,1936.6,1936.3,6.17106047]
[1688339152534,0.30979,1936.8,1936.3,25.21462363]
[1688339152735,0.77445,1936.9,1936.8,5.36578]
[1688339152940,0.77445,1936.9,1936.8,11.21927862]
[1688339153137,0.30975,1937.0,1936.8,11.21927862]
[1688339153337,0.30975,1937.0,1936.9,8.2498]
[1688339153642,0.30975,1937.0,1936.9,8.55957]
[1688339154632,8.2638,1937.5,1936.9,8.55957]
[1688339154633,0.30973,1937.4,1937.0,0.84649862]
[1688339154838,0.30973,1937.4,1937.3,11.1598]
[1688339155038,0.30969,1937.4,1937.3,11.4695]
[1688339155238,0.30969,1937.4,1937.3,12.31599862]
[1688339156339,0.30969,1937.4,1937.3,0.55978227]
[1688339156540,0.30969,1937.4,1937.3,0.28671635]
[1688339156742,0.30969,1937.4,1937.2,0.86950227]
[1688339157141,0.30969,1937.4,1937.3,7.952]
[1688339157545,0.30969,1937.4,1937.3,8.2617]
[1688339157740,0.30969,1937.4,1937.3,11.4695]
[1688339158444,0.30969,1937.4,1937.3,8.2617]
[1688339160239,0.93678253,1937.5,1937.3,8.2617]
[1688339160240,0.00774253,1937.5,1937.4,8.36469]
[1688339160437,0.00774253,1937.5,1937.4,9.21118862]
[1688339160840,0.77423,1937.6,1937.4,17.10418862]
[1688339161049,0.30967,1937.7,1937.5,11.46947]
[1688339161247,0.30967,1937.7,1937.6,1.15615862]
[1688339162941,0.30967,1937.7,1937.6,1.24089135]
[1688339163143,0.30967,1937.7,1937.6,1.5276077]
[1688339166247,0.00774134,1937.8,1937.6,1.6306077]
[1688339166444,0.00774134,1937.8,1937.7,11.1598]
[1688339166445,0.78184134,1937.8,1937.7,11.1598]
[1688339166651,0.78184134,1937.8,1937.7,11.46944]
[1688339169257,0.00774134,1937.8,1937.7,11.46944]
[1688339169445,0.92886,1938.0,1937.7,19.42144]
[1688339169754,0.30959,1938.1,1938.0,7.893]
[1688339169953,0.77398,1938.1,1938.0,8.20259]
[1688339170153,0.30958,1938.2,1938.0,9.04908862]
[1688339170454,0.92868,1938.3,1938.1,11.1598]
[1688339170650,0.92868,1938.3,1938.2,1.15605862]
[1688339172047,0.77391,1938.5,1938.2,1.15605862]
[1688339172247,0.77391,1938.5,1938.4,11.46933]
[1688339172453,0.77391,1938.5,1938.4,12.31582862]
[1688339173755,0.30951,1938.6,1938.4,12.31582862]
[1688339174055,0.7737,1938.8,1938.6,8.26148]
[1688339174252,0.7737,1938.8,1938.7,12.31577862]
[1688339177657,0.92843,1939.0,1938.7,12.31577862]
[1688339177861,0.92843,1939.0,1938.9,11.1598]
[1688339178161,0.92843,1939.0,1938.9,12.31574862]
[1688339179158,0.92843,1939.0,1938.9,9.10794862]
[1688339179564,1.19172487,1939.0,1938.9,9.10794862]
[1688339180965,1.19172487,1939.0,1938.9,12.31574862]
[1688339181164,0.26329487,1939.0,1938.9,12.31574862]
[1688339181365,0.57272487,1939.0,1938.9,12.31574862]
[1688339185165,0.77361,1939.3,1938.9,20.26774862]
[1688339185358,0.19779473,1939.0,1938.9,1.15594862]
[1688339185662,0.77361,1939.3,1938.9,20.26774862]
[1688339185862,0.77361,1939.3,1939.2,19.1118]
[1688339186065,0.77361,1939.3,1939.2,12.31569862]
[1688339194971,0.77361,1939.3,1939.2,20.20869862]
[1688339195161,0.30942,1939.4,1939.2,20.20869862]
[1688339195362,0.30942,1939.4,1939.2,20.62402995]
[1688339195567,0.33931999,1939.3,1939.2,20.62402995]
[1688339195868,0.30939,1939.3,1939.2,20.62402995]
[1688339197071,0.30942,1939.4,1939.2,20.62402995]
[1688339201169,0.30938,1939.4,1939.2,20.62402995]
[1688339201861,0.30938,1939.4,1939.2,0.41533133]
[1688339202063,0.30938,1939.4,1938.8,7.952]
[1688339202064,3.2078,1939.3,1938.8,7.952]
[1688339202265,3.2078,1939.1,1938.8,7.952]
[1688339202463,3.2078,1939.1,1938.7,7.94]
[1688339202464,0.87691412,1939.0,1938.7,7.94]
[1688339202665,0.87691412,1939.0,1938.5,11.46931]
[1688339203569,0.87691412,1939.0,1938.5,11.88693467]
[1688339204176,0.87691412,1939.0,1938.5,11.57742467]
[1688339204370,3.2078,1938.9,1938.5,11.57742467]
[1688339204578,0.30946,1938.8,1938.5,11.57742467]
[1688339204774,0.30946,1938.8,1938.7,7.952]
[1688339212178,0.30946,1938.8,1938.7,12.02906227]
[1688339212385,0.41165386,1938.8,1938.7,12.02906227]
[1688339212683,0.30946,1938.8,1938.7,12.02906227]
[1688339215182,0.3094,1939.2,1938.7,24.92206227]
[1688339215483,0.3094,1939.2,1938.7,5.97226227]
[1688339215484,0.54040382,1939.1,1938.7,5.97226227]
[1688339215681,0.54040382,1939.1,1939.0,11.46923]
[1688339215878,0.54040382,1939.1,1939.0,11.75594635]
[1688339216076,0.54040382,1939.1,1939.0,12.31572862]
[1688339216289,0.30942,1939.1,1939.0,12.31572862]
[1688339217086,0.5032583,1939.1,1939.0,12.31572862]
[1688339217385,0.5032583,1939.1,1939.0,7.952]
[1688339217592,0.40350173,1939.1,1939.0,8.26143]
[1688339217887,0.37464479,1939.1,1939.0,8.54814635]
[1688339218075,0.40371043,1939.1,1939.0,8.54814635]
[1688339218878,0.40371043,1939.1,1939.0,11.75594635]
[1688339219685,0.40371043,1939.1,1939.0,8.83594635]
[1688339220087,0.40371043,1939.1,1939.0,5.62814635]
[1688339220991,0.40371043,1939.1,1939.0,8.83594635]
[1688339224485,0.09429043,1939.1,1939.0,8.83594635]
[1688339224677,0.40371043,1939.1,1939.0,8.83594635]
[1688339225081,0.40371043,1939.1,1939.0,9.25018316]
[1688339231989,0.30942,1939.1,1939.0,9.35318316]
[1688339232783,0.77355,1939.2,1939.1,0.55978227]
[1688339232977,0.77355,1939.2,1939.1,5.92520227]
[1688339234990,9.03735,1939.2,1938.3,0.00773793]
[1688339235176,9.03735,1939.2,1938.3,5.06373793]
[1688339235177,5.79371,1938.8,1938.3,5.06373793]
[1688339235382,0.87696412,1938.7,1938.4,3.44420709]
[1688339235584,0.87696412,1938.7,1938.4,0.23640709]
[1688339235788,5.016,1938.5,1938.4,0.23640709]
[1688339235982,5.016,1938.5,1937.6,11.60044705]
[1688339235983,0.30954,1938.3,1937.8,8.2638]
[1688339236180,0.30958,1938.1,1937.9,0.33951376]
[1688339236377,0.56748412,1938.0,1937.9,0.33951376]
[1688339236692,0.56748412,1938.0,1937.9,8.818085]
[1688339236693,0.77403,1938.0,1937.9,8.818085]
[1688339237080,0.77403,1938.0,1937.9,9.03789803]
[1688339241691,0.31733014,1938.1,1937.9,9.03789803]
[1688339241889,0.31733014,1938.1,1938.0,5.36559]
[1688339242092,0.31733014,1938.1,1938.0,5.92537227]
[1688339242283,0.31733014,1938.1,1938.0,6.07280659]
[1688339242689,0.31733014,1938.1,1938.0,6.11274904]
[1688339243189,0.31733014,1938.1,1938.0,5.24337677]
[1688339243897,0.31733014,1938.1,1938.0,5.83968312]
[1688339246200,0.30961,1937.9,1937.4,5.83016]
[1688339246398,8.57341,1937.9,1937.4,5.056]
[1688339246696,0.56748412,1937.8,1937.4,8.2638]
[1688339246903,0.30964,1937.7,1937.4,8.2638]
[1688339247095,0.30964,1937.7,1937.5,0.28671635]
[1688339247402,0.30964,1937.7,1937.6,5.056]
[1688339250000,0.59635635,1937.7,1937.6,5.056]
[1688339250199,0.59635635,1937.7,1937.5,5.34271635]
[1688339251496,3.80415635,1937.7,1937.5,0.28671635]
[1688339251698,3.80415635,1937.7,1937.4,0.31743174]
[1688339252904,3.80415635,1937.7,1937.4,5.37343174]
[1688339253804,3.80415635,1937.7,1937.5,0.37617527]
[1688339254200,3.80415635,1937.7,1937.5,0.66289162]
[1688339254910,3.80415635,1937.7,1937.5,0.37617527]
[1688339255903,3.80415635,1937.7,1937.5,0.68584527]
[1688339257515,3.80415635,1937.7,1937.6,5.034]
[1688339257904,3.80415635,1937.7,1937.6,5.38184409]
[1688339258105,3.51744,1937.7,1937.6,5.38184409]
[1688339258422,0.30964,1937.7,1937.6,5.69150409]
[1688339260113,0.30964,1937.7,1937.6,8.89930409]
[1688339260313,0.30964,1937.7,1937.6,3.7632731]
[1688339260508,0.30964,1937.7,1937.6,3.69147149]
[1688339260814,0.30961,1938.0,1937.8,0.30962]
[1688339261010,0.30961,1938.0,1937.9,5.65232635]
[1688339261209,0.30961,1938.0,1937.9,5.73949431]
[1688339263513,0.30961,1938.0,1937.9,5.77483434]
[1688339263919,0.59632635,1938.0,1937.9,5.77483434]
[1688339264214,0.30961,1938.0,1937.9,5.77483434]
[1688339268618,0.30961,1938.0,1937.9,5.73657855]
[1688339268914,0.93653014,1938.1,1937.9,5.73657855]
[1688339269126,0.00774014,1938.1,1938.0,8.2418]
[1688339269320,0.77396,1938.2,1938.0,8.55139]
[1688339269622,0.30957,1938.3,1938.2,0.30956]
[1688339269815,0.30957,1938.3,1938.2,3.51736]
[1688339270120,0.30957,1938.3,1938.2,3.80407635]
[1688339270913,0.93644894,1938.4,1938.3,10.112]
[1688339271114,0.93644894,1938.4,1938.3,10.39955]
[1688339272627,0.30953,1938.4,1938.3,10.39955]
[1688339272822,0.30953,1938.5,1938.3,10.39955]
[1688339273128,0.30953,1938.5,1938.4,5.36553]
[1688339273527,0.37816405,1938.5,1938.4,5.36553]
[1688339274222,0.30953,1938.5,1938.4,5.36553]
[1688339275324,0.30951,1938.6,1938.4,8.57333]
[1688339275518,0.92857,1938.7,1938.5,5.32071635]
[1688339275726,0.92857,1938.7,1938.6,8.2578]
[1688339275923,0.92857,1938.7,1938.6,8.5673]
[1688339276220,0.30948,1938.8,1938.6,8.5673]
[1688339276421,0.30948,1938.8,1938.7,5.63019635]
[1688339276823,0.77375,1938.9,1938.8,5.015]
[1688339277025,0.92838,1939.1,1938.8,13.58827]
[1688339277226,0.54822892,1939.0,1938.9,0.59614635]
[1688339277421,0.54822892,1939.0,1938.9,5.65214635]
[1688339277616,0.30944,1939.0,1938.9,5.65214635]
[1688339278024,0.92838,1939.1,1938.9,5.65214635]
[1688339278228,0.92838,1939.1,1939.0,5.056]
[1688339278418,0.92838,1939.1,1939.0,5.36543]
[1688339279724,0.92838,1939.1,1939.0,8.57323]
[1688339279937,0.92838,1939.1,1939.0,8.67623]
[1688339280732,1.21509635,1939.1,1939.0,5.056]
[1688339281023,1.21509635,1939.1,1939.0,5.65214635]
[1688339281226,1.65350415,1939.1,1939.0,5.65214635]
[1688339281417,1.3667878,1939.1,1939.0,5.65214635]
[1688339282022,0.92838,1939.1,1939.0,5.65214635]
[1688339288827,0.74825904,1939.1,1939.0,5.75514635]
[1688339289024,0.74825904,1939.1,1939.0,8.96294635]
[1688339292031,0.74825904,1939.1,1939.0,8.85994635]
[1688339292833,0.74825904,1939.1,1939.0,8.52324126]
[1688339299338,0.43883904,1939.1,1939.0,8.52324126]
[1688339299537,0.30939,1939.4,1939.0,8.52324126]
[1688339299837,0.30939,1939.4,1939.3,6.76719]
[1688339300035,0.30939,1939.4,1939.3,7.05390635]
[1688339300432,0.30939,1939.4,1939.3,3.49451635]
[1688339300637,0.59610635,1939.4,1939.2,3.25]
[1688339300838,0.59610635,1939.4,1939.2,3.5594]
[1688339301136,0.30939,1939.4,1939.2,3.84611635]
[1688339301339,0.30939,1939.4,1939.3,6.4578]
[1688339301643,0.30939,1939.4,1939.3,6.76719]
[1688339303940,0.30937,1939.5,1939.3,6.76719]
[1688339304140,0.30937,1939.5,1939.4,3.50771635]
[1688339304340,0.30937,1939.5,1939.4,3.81708635]
[1688339307046,0.92812,1939.7,1939.4,3.81708635]
[1688339307248,0.92795,1939.9,1939.6,6.4578]
[1688339307546,0.78903351,1939.8,1939.7,0.59603635]
[1688339307746,0.78903351,1939.8,1939.7,7.05383635]
[1688339308137,0.47972351,1939.8,1939.7,7.05383635]
[1688339308340,0.92795,1939.9,1939.7,7.05383635]
[1688339308542,0.92795,1939.9,1939.8,3.55931]
[1688339309247,0.77327,1940.0,1939.8,3.55931]
[1688339309445,0.77327,1940.0,1939.9,6.4288]
[1688339309749,0.77327,1940.0,1939.9,8.84680635]
[1688339310043,0.30927,1940.1,1939.9,8.84680635]
[1688339310243,0.92781,1940.2,1940.1,10.106]
[1688339310441,0.92781,1940.2,1940.1,13.90977635]
[1688339315347,0.30924,1940.3,1940.1,13.90977635]
[1688339315544,0.30924,1940.3,1940.2,5.053]
[1688339315750,0.30924,1940.3,1940.2,5.36225]
[1688339315945,1.01384957,1940.3,1940.2,5.36225]
[1688339316551,0.70460957,1940.3,1940.2,5.36225]
[1688339316753,0.30923,1940.3,1940.2,5.36225]
[1688339317243,1.01392763,1940.3,1940.2,5.36225]
[1688339317651,0.70469763,1940.3,1940.2,5.36225]
[1688339318148,1.01392763,1940.3,1940.2,5.36225]
[1688339318348,0.70469763,1940.3,1940.2,5.36225]
[1688339318651,1.01392763,1940.3,1940.2,5.36225]
[1688339319152,0.70469763,1940.3,1940.2,5.36225]
[1688339319547,0.30923,1940.5,1940.2,5.36225]
[1688339319754,0.30923,1940.5,1940.4,8.2608]
[1688339319958,0.30923,1940.5,1940.4,8.85672635]
[1688339321356,0.92768,1940.6,1940.4,8.85672635]
[1688339321555,0.92768,1940.6,1940.5,5.053]
[1688339321751,0.92768,1940.6,1940.5,5.3622]
[1688339325159,8e-05,1940.6,1940.5,5.3622]
[1688339325361,0.77277,1941.2,1940.7,40.335]
[1688339325557,0.30908,1941.3,1941.1,8.2608]
[1688339325858,0.92729,1941.4,1941.3,10.061]
[1688339326059,0.92729,1941.4,1941.3,13.83058635]
[1688339326355,0.30906,1941.5,1941.3,13.83058635]
[1688339326552,0.30906,1941.5,1941.4,5.36205]
[1688339326749,1.42458234,1941.5,1941.4,5.36205]
[1688339330568,4.91909869,1941.5,1941.2,5.043]
[1688339330954,3.2078,1941.3,1941.0,5.041]
[1688339331154,3.2078,1941.3,1940.9,3.2078]
[1688339331155,0.59580635,1941.2,1940.9,8.2608]
[1688339331355,1.51685223,1941.2,1941.0,0.28671635]
[1688339331554,0.92727,1941.4,1941.1,13.5699]
[1688339331555,0.30906,1941.4,1941.1,13.5699]
[1688339331866,0.30906,1941.4,1941.3,13.58285]
[1688339332060,1.0303,1941.5,1941.3,13.58285]
[1688339332260,1.0303,1941.5,1941.4,5.36205]
[1688339332663,1.91592208,1941.5,1941.4,5.64876635]
[1688339333063,1.91592208,1941.5,1941.4,5.36205]
[1688339333064,2.20263843,1941.5,1941.4,5.36205]
[1688339333268,2.20263843,1941.5,1941.4,5.053]
[1688339335465,2.20263843,1941.5,1941.3,5.019]
[1688339335765,2.20263843,1941.5,1941.1,5.053]
[1688339335766,4.08433412,1941.4,1941.1,5.053]
[1688339335963,4.08433412,1941.4,1941.3,5.019]
[1688339336359,4.08433412,1941.4,1941.3,5.30571635]
[1688339337859,4.08433412,1941.4,1941.3,5.019]
[1688339338059,4.08433412,1941.4,1940.9,0.41579844]
[1688339338264,4.08433412,1941.4,1940.7,5.041]
[1688339338265,3.2078,1941.0,1940.7,5.041]
[1688339338464,3.2078,1940.8,1940.6,0.00972897]
[1688339338663,3.2078,1940.8,1940.5,10.264]
[1688339338664,0.30917,1940.7,1940.3,5.019]
[1688339338864,3.2078,1940.4,1940.3,5.019]
[1688339339065,4.37121047,1940.4,1940.3,5.30571635]
[1688339339273,1.20501017,1940.4,1940.3,5.30571635]
[1688339341874,0.63752605,1940.4,1940.3,5.61494635]
[1688339343269,0.63752605,1940.4,1940.3,5.71794635]
[1688339343464,0.63752605,1940.4,1940.3,13.97874635]
[1688339343465,0.30921,1940.4,1940.3,13.97874635]
[1688339344973,1e-05,1940.4,1940.3,13.97874635]
[1688339345276,0.77293,1940.9,1940.3,24.15974635]
[1688339345472,0.92736,1941.1,1940.8,13.3138]
[1688339345473,0.30912,1941.1,1940.8,13.3138]
[1688339345674,0.30912,1941.1,1941.0,5.019]
[1688339345869,1.18514301,1941.3,1941.0,8.53592]
[1688339346069,0.55156061,1941.1,1941.0,3.51692]
[1688339346269,0.3091,1941.1,1941.0,8.56992]
[1688339346665,0.87393242,1941.1,1941.0,8.56992]
[1688339346975,0.87393242,1941.1,1941.0,8.85663635]
[1688339346976,0.3091,1941.1,1941.0,8.85663635]
[1688339347164,0.56486334,1941.1,1941.0,8.85663635]
[1688339347367,0.77276,1941.2,1941.0,8.85663635]
[1688339347563,0.77276,1941.2,1941.1,5.3501]
[1688339348571,0.3091,1941.3,1941.1,5.3501]
[1688339348780,0.3091,1941.3,1941.2,3.49451635]
[1688339349071,0.3091,1941.3,1941.2,3.80359635]
[1688339349279,0.77275,1941.4,1941.3,5.012]
[1688339349470,0.77275,1941.4,1941.3,10.41507]
[1688339349977,1.17742999,1941.6,1941.3,10.41507]
[1688339349978,0.77267,1941.6,1941.3,10.41507]
[1688339350175,0.77267,1941.6,1941.5,8.2608]
[1688339350473,0.77267,1941.6,1941.5,8.56984]
[1688339351679,1.32799471,1941.6,1941.5,8.56984]
[1688339351873,0.77267,1941.6,1941.5,8.56984]
[1688339352375,0.77267,1941.6,1941.5,5.36204]
[1688339353576,1.05938635,1941.6,1941.5,5.053]
[1688339353773,4.75628978,1941.6,1941.3,5.95484618]
[1688339354075,4.75628978,1941.6,1941.5,5.053]
[1688339354376,1.54848978,1941.6,1941.5,5.053]
[1688339354570,1.26177343,1941.6,1941.5,5.053]
[1688339355667,1.54848978,1941.6,1941.5,5.053]
[1688339356577,4.75628978,1941.6,1941.5,5.053]
[1688339357179,1.26177343,1941.6,1941.5,5.64875635]
[1688339357776,1.26177343,1941.6,1941.5,5.33971635]
[1688339358373,1.26177343,1941.6,1941.5,5.64875635]
[1688339359075,0.77267,1941.6,1941.5,5.64875635]
[1688339360080,1.22184004,1941.6,1941.5,5.64875635]
[1688339360979,0.77267,1941.6,1941.5,5.64875635]
[1688339362781,0.30902,1941.7,1941.5,5.64875635]
[1688339362976,0.30902,1941.7,1941.6,8.56982]
[1688339365278,0.59573635,1941.7,1941.5,0.28671635]
[1688339365580,0.59573635,1941.7,1941.3,6.25412697]
[1688339365581,3.52052692,1941.6,1941.3,5.44850697]
[1688339365785,3.2078,1941.4,1941.3,5.44850697]
[1688339365979,4.37105047,1941.4,1941.0,10.2386]
[1688339366178,0.3091,1941.1,1941.0,5.053]
[1688339366388,0.87658412,1941.1,1941.0,5.33971635]
[1688339366689,1.16330047,1941.1,1941.0,5.33971635]
[1688339367283,0.87658412,1941.1,1941.0,5.33971635]
[1688339367587,1.15258991,1941.1,1941.0,5.33971635]
[1688339368390,0.58510579,1941.1,1941.0,5.33971635]
[1688339368985,0.58510579,1941.1,1941.0,5.32971635]
[1688339370387,0.58510579,1941.1,1941.0,8.32971635]
[1688339372779,0.58510579,1941.1,1941.0,8.32771635]
[1688339373787,0.58510579,1941.1,1941.0,8.63683635]
[1688339373990,0.58510579,1941.1,1941.0,11.84463635]
[1688339374189,0.3091,1941.1,1941.0,11.84463635]
[1688339375099,0.3091,1941.1,1941.0,8.63683635]
[1688339384498,0.59581635,1941.1,1941.0,8.041]
[1688339384699,0.59581635,1941.1,1941.0,3.0]
[1688339385292,0.86182529,1941.1,1941.0,3.0]
[1688339386399,0.86182529,1941.1,1941.0,3.28671635]
[1688339386602,0.86182529,1941.1,1941.0,3.0]
[1688339388403,0.86182529,1941.1,1941.0,3.28671635]
[1688339390504,0.86182529,1941.1,1941.0,3.0]
[1688339392807,0.86182529,1941.1,1941.0,8.02]
[1688339393300,0.59581635,1941.1,1941.0,8.02]
[1688339395302,5.91542688,1941.1,1941.0,3.0]
[1688339395507,0.56748412,1941.0,1940.3,10.058]
[1688339395708,8.2608,1940.6,1940.1,5.053]
[1688339395907,0.87667412,1940.5,1940.4,1e-08]
[1688339396211,9.13647412,1940.5,1940.0,5.01]
[1688339396504,9.13647412,1940.5,1940.1,0.00773096]
[1688339396505,5.053,1940.2,1940.1,0.00773096]
[1688339396711,5.92972412,1940.2,1940.1,0.00773096]
[1688339397512,0.87672412,1940.2,1940.1,0.00773096]
[1688339399204,0.30924,1940.2,1940.1,5.62370731]
[1688339406004,0.30924,1940.2,1940.1,6.12355114]
[1688339409613,0.78084136,1940.3,1940.1,11.17655114]
[1688339409813,0.78084136,1940.3,1940.2,5.32924]
[1688339410006,0.31696136,1940.3,1940.2,5.32924]
[1688339410208,0.31696136,1940.3,1940.2,5.78568283]
[1688339412219,0.31696136,1940.3,1940.2,8.99348283]
[1688339412519,0.00773136,1940.3,1940.2,8.99348283]
[1688339413514,0.31696136,1940.3,1940.2,8.99348283]
[1688339413814,0.00773136,1940.3,1940.2,8.99348283]
[1688339414118,0.31696136,1940.3,1940.2,8.99348283]
[1688339414313,0.30923,1940.3,1940.2,8.99348283]
[1688339414511,0.27063,1940.3,1940.2,8.99348283]
[1688339414822,0.30923,1940.4,1940.3,0.28671635]
[1688339415017,0.30923,1940.4,1940.3,5.31923]
[1688339415216,0.30923,1940.4,1940.3,6.02225716]
[1688339415523,0.30919,1940.6,1940.3,6.12525716]
[1688339415814,0.30919,1940.6,1940.5,8.55999]
[1688339416021,0.30919,1940.6,1940.5,8.84670635]
[1688339416220,0.30919,1940.6,1940.5,9.18339535]
[1688339424628,0.30919,1940.6,1940.5,7.38739535]
[1688339426125,0.30919,1940.6,1940.5,7.79292571]
[1688339426527,0.30919,1940.6,1940.5,7.50620936]